bitfinex/quotes_SOLUSD_20250207
["timestamp","ask_amount","ask_price","bid_price","bid_amount"]
[1738921502600,18.90636399,196.89,196.88,0.0001]
[1738921503923,23.98526399,196.89,196.88,0.0001]
[1738921505013,23.60879399,196.89,196.88,0.0001]
[1738921508133,5.0789,196.89,196.88,0.0001]
[1738921508720,23.60879399,196.89,196.88,0.0001]
[1738921509738,18.52989399,196.9,196.88,1.0001]
[1738921510037,18.52989399,196.9,196.89,1.0]
[1738921510638,32.5126326,196.92,196.91,1.0]
[1738921510933,32.5126326,196.92,196.9,1.0]
[1738921511133,18.52989399,196.91,196.88,0.0001]
[1738921511316,18.52989399,196.89,196.88,0.0001]
[1738921512409,23.60879399,196.89,196.88,0.0001]
[1738921512610,5.0789,196.89,196.88,1.0001]
[1738921512811,5.0787,196.9,196.89,1.0]
[1738921513435,23.60859399,196.9,196.88,1.0001]
[1738921513619,18.52989399,196.89,196.88,0.0001]
[1738921513820,18.52989399,196.89,196.88,1.0001]
[1738921514336,18.52989399,196.89,196.88,0.0001]
[1738921514536,23.60879399,196.89,196.88,0.0001]
[1738921514846,5.0789,196.89,196.88,1.0001]
[1738921516339,23.60829399,196.91,196.89,1.0]
[1738921516553,19.06093861,196.92,196.9,1.0]
[1738921516851,19.09093861,196.92,196.9,1.0]
[1738921517619,14.01273861,196.92,196.91,1.0]
[1738921519513,0.03,196.92,196.91,1.0]
[1738921519720,18.55989399,196.92,196.91,1.0]
[1738921521116,0.03,196.92,196.91,1.0]
[1738921526746,0.03,196.92,196.91,19.52989399]
[1738921526947,0.03,196.92,196.91,1.0]
[1738921535150,0.03,196.92,196.91,1.76161997]
[1738921535928,0.03,196.92,196.88,20.76156886]
[1738921536128,0.03,196.92,196.88,32.65434829]
[1738921536428,0.03,196.92,196.88,20.76156886]
[1738921536939,0.03,196.92,196.91,20.0]
[1738921538237,0.03,196.92,196.9,20.0]
[1738921538623,11.92277943,196.92,196.89,20.0]
[1738921538946,11.89277943,196.9,196.85,6.5409]
[1738921539249,11.89277943,196.87,196.85,6.5409]
[1738921539632,11.89277943,196.87,196.82,1.5948]
[1738921539832,11.89277943,196.83,196.8,6.5689]
[1738921540037,11.89277943,196.82,196.8,6.5689]
[1738921540346,11.89277943,196.81,196.78,1.6598]
[1738921540538,11.89277943,196.8,196.78,21.6598]
[1738921540852,18.6097381,196.79,196.78,20.0]
[1738921541053,18.6097381,196.79,196.75,6.6319]
[1738921541358,18.6097381,196.8,196.78,20.0]
[1738921541739,18.6097381,196.79,196.75,6.6319]
[1738921542128,18.6097381,196.79,196.75,0.063]
[1738921542332,18.6097381,196.8,196.76,20.0]
[1738921542532,18.6097381,196.8,196.75,0.063]
[1738921542942,18.6097381,196.8,196.77,20.0]
[1738921543766,18.6097381,196.81,196.77,20.0]
[1738921543965,18.6097381,196.83,196.78,20.0]
[1738921544175,18.6097381,196.84,196.78,39.37179615]
[1738921544466,18.6097381,196.83,196.78,20.0]
[1738921544841,18.6097381,196.82,196.78,20.0]
[1738921545062,18.6097381,196.81,196.78,20.0]
[1738921545941,18.6097381,196.81,196.75,0.063]
[1738921546350,18.6097381,196.81,196.77,20.0]
[1738921546552,18.6097381,196.79,196.77,20.0]
[1738921546941,18.6097381,196.8,196.77,20.0]
[1738921547147,18.6097381,196.8,196.76,20.0]
[1738921547763,18.6097381,196.81,196.77,20.0]
[1738921548378,18.6097381,196.8,196.77,20.0]
[1738921549861,18.6097381,196.81,196.77,20.0]
[1738921550160,5.0802,196.84,196.75,0.063]
[1738921550161,18.6097381,196.8,196.75,0.063]
[1738921550960,23.6910381,196.8,196.75,0.063]
[1738921552539,23.6910381,196.8,196.77,0.063]
[1738921552758,18.6097381,196.78,196.77,0.063]
[1738921553760,23.6915381,196.78,196.77,0.063]
[1738921555376,18.6097381,196.79,196.77,0.063]
[1738921557184,18.6097381,196.81,196.77,0.063]
[1738921557367,18.6097381,196.82,196.77,0.063]
[1738921558663,23.6905381,196.82,196.77,0.063]
[1738921560863,16.98778415,196.82,196.77,0.063]
[1738921561063,11.90698415,196.81,196.77,0.063]
[1738921561653,11.90698415,196.78,196.77,0.063]
[1738921562760,18.61758231,196.78,196.77,0.063]
[1738921564179,23.69938231,196.78,196.77,0.063]
[1738921567365,23.95036231,196.78,196.77,0.063]
[1738921569373,24.07585231,196.78,196.77,0.063]
[1738921573276,23.69938231,196.78,196.77,0.063]
[1738921573475,5.0815,196.79,196.77,0.063]
[1738921574478,18.61758231,196.78,196.77,0.063]
[1738921574688,18.86856231,196.78,196.77,0.063]
[1738921574877,18.99405231,196.78,196.77,0.063]
[1738921575859,32.40590084,196.78,196.77,0.063]
[1738921576058,33.40590083,196.78,196.77,0.063]
[1738921576663,37.48770084,196.78,196.77,0.063]
[1738921577781,38.48770083,196.78,196.77,0.063]
[1738921577976,5.20779,196.76,196.75,0.063]
[1738921578170,24.07635231,196.76,196.75,0.063]
[1738921578576,37.48820084,196.76,196.75,0.063]
[1738921583092,24.07635231,196.76,196.75,0.063]
[1738921583280,23.69988231,196.76,196.75,0.063]
[1738921584600,16.99745717,196.76,196.75,0.063]
[1738921585179,11.91515717,196.77,196.75,0.063]
[1738921585380,16.99715717,196.78,196.75,0.063]
[1738921585688,11.91515717,196.77,196.75,0.063]
[1738921586489,16.99745717,196.77,196.75,0.063]
[1738921587214,11.91515717,196.76,196.75,0.063]
[1738921587584,16.99745717,196.76,196.75,0.063]
[1738921587780,5.0818,196.79,196.75,0.063]
[1738921587993,0.03,196.77,196.75,0.063]
[1738921589793,11.91515717,196.76,196.75,0.063]
[1738921591071,16.99745717,196.76,196.75,0.063]
[1738921591803,17.37392717,196.76,196.75,0.063]
[1738921592100,16.99745717,196.76,196.75,0.063]
[1738921593598,11.94515717,196.77,196.75,0.063]
[1738921593795,0.03,196.77,196.75,0.063]
[1738921594295,11.94515717,196.77,196.75,0.063]
[1738921594501,11.91515717,196.76,196.75,0.063]
[1738921595298,12.16613717,196.76,196.75,0.063]
[1738921595909,17.24843717,196.76,196.75,0.063]
[1738921596107,0.12549,196.75,196.71,0.063]
[1738921596309,11.91515717,196.72,196.71,0.063]
[1738921597187,0.37647,196.75,196.71,0.063]
[1738921597188,11.91515717,196.73,196.71,0.063]
[1738921597581,0.37647,196.75,196.71,0.063]
[1738921597794,11.91515717,196.72,196.71,0.063]
[1738921599109,5.0833,196.72,196.71,0.063]
[1738921600087,16.99845717,196.72,196.71,0.063]
[1738921601211,17.24943717,196.72,196.71,0.063]
[1738921601418,17.37492717,196.72,196.71,0.063]
[1738921601806,17.37492717,196.72,196.71,0.0001]
[1738921603606,13.41184853,196.7,196.69,0.0001]
[1738921603792,73.36410438,196.7,196.69,0.0001]
[1738921603998,0.12549,196.68,196.59,5.3018]
[1738921604311,11.91515717,196.64,196.59,5.3018]
[1738921604510,11.91515717,196.63,196.59,5.3018]
[1738921604901,11.91515717,196.65,196.59,17.21695717]
[1738921605705,17.00055717,196.64,196.59,5.3018]
[1738921606102,5.0854,196.64,196.59,17.21695717]
[1738921606505,16.99975717,196.67,196.61,11.91515717]
[1738921606703,16.99975717,196.67,196.61,18.63385702]
[1738921606704,23.71845702,196.67,196.61,18.63385702]
[1738921607111,5.0846,196.67,196.63,18.63385702]
[1738921607895,5.0844,196.68,196.63,18.63385702]
[1738921608299,5.0844,196.68,196.62,18.63385702]
[1738921608599,18.63385702,196.67,196.61,18.63385702]
[1738921608821,23.71825702,196.68,196.61,23.71995702]
[1738921609009,5.0844,196.68,196.62,18.63385702]
[1738921609521,23.71825702,196.68,196.61,23.71995702]
[1738921610822,18.63385702,196.67,196.61,18.63385702]
[1738921611631,18.63385702,196.65,196.59,23.96565702]
[1738921612711,23.71845702,196.67,196.61,18.63385702]
[1738921612914,5.0846,196.67,196.61,18.63385702]
[1738921615211,5.0846,196.67,196.63,18.63385702]
[1738921615411,0.063,196.68,196.63,18.63385702]
[1738921615614,0.063,196.68,196.64,18.63385702]
[1738921616837,0.063,196.68,196.67,18.63385702]
[1738921618530,0.063,196.68,196.67,26.65475702]
[1738921621111,0.063,196.68,196.67,31.73935702]
[1738921621429,0.063,196.68,196.67,45.15120555]
[1738921623029,0.063,196.68,196.64,18.63385702]
[1738921623325,0.063,196.68,196.63,18.63385702]
[1738921623512,0.063,196.68,196.62,26.28925702]
[1738921623912,18.63385702,196.66,196.62,6.1258]
[1738921624134,18.63385702,196.66,196.59,18.66385702]
[1738921624331,18.63385702,196.66,196.62,20.0]
[1738921624712,18.63385702,196.67,196.62,20.0]
[1738921625114,5.0849,196.66,196.62,20.0]
[1738921625308,5.0849,196.66,196.6,18.63385702]
[1738921627710,23.71875702,196.66,196.59,18.66385702]
[1738921630343,11.87836766,196.66,196.59,18.66385702]
[1738921631441,16.96326766,196.66,196.59,18.66385702]
[1738921632639,0.063,196.68,196.62,11.92602165]
[1738921632848,0.063,196.68,196.64,11.92602165]
[1738921633633,0.063,196.68,196.63,11.92602165]
[1738921634443,0.063,196.68,196.61,5.0861]
[1738921634444,11.98902165,196.68,196.61,17.01212165]
[1738921634628,18.69576873,196.68,196.61,18.63276873]
[1738921635727,5.0846,196.67,196.61,18.63276873]
[1738921636221,5.0846,196.67,196.61,330.63276873]
[1738921636553,5.0846,196.67,196.61,18.63276873]
[1738921636941,5.0846,196.67,196.62,18.63276873]
[1738921638030,5.0846,196.67,196.61,18.63276873]
[1738921638860,18.63276873,196.67,196.61,18.63276873]
[1738921639371,18.63276873,196.66,196.6,20.0]
[1738921639541,18.63276873,196.65,196.6,20.0]
[1738921640867,0.31398,196.68,196.6,38.63276873]
[1738921640868,18.63276873,196.67,196.6,38.63276873]
[1738921641044,5.1475,196.68,196.63,18.63276873]
[1738921641237,23.78026873,196.68,196.61,18.63276873]
[1738921641438,18.63276873,196.67,196.61,18.63276873]
[1738921641857,18.63276873,196.66,196.6,20.0]
[1738921642152,18.63276873,196.65,196.6,20.0]
[1738921643057,5.0854,196.64,196.6,20.0]
[1738921643236,5.0854,196.64,196.6,38.63276873]
[1738921644161,5.0847,196.67,196.62,18.63276873]
[1738921644755,5.0847,196.67,196.61,18.63276873]
[1738921646569,5.1474,196.68,196.62,18.63276873]
[1738921647151,5.1474,196.68,196.63,18.63276873]
[1738921647347,0.063,196.68,196.63,18.63276873]
[1738921647853,0.063,196.68,196.62,18.63276873]
[1738921650692,18.63276873,196.66,196.6,20.03]
[1738921650982,18.63276873,196.65,196.6,20.03]
[1738921651554,18.63276873,196.63,196.6,0.03]
[1738921652354,18.63276873,196.61,196.6,0.03]
[1738921653064,23.71896873,196.61,196.6,0.03]
[1738921654764,11.93329935,196.61,196.6,0.03]
[1738921656362,12.18427935,196.62,196.6,0.03]
[1738921656566,5.0862,196.61,196.6,0.03]
[1738921656749,17.01889935,196.63,196.6,0.03]
[1738921656964,17.01869935,196.65,196.6,0.03]
[1738921657367,5.0854,196.65,196.6,0.03]
[1738921657567,17.01869935,196.65,196.6,0.03]
[1738921658766,5.0854,196.65,196.6,11.96329935]
[1738921662054,5.0848,196.67,196.62,11.93329935]
[1738921662883,17.08069935,196.68,196.61,11.93329935]
[1738921663466,11.93329935,196.67,196.6,11.96329935]
[1738921663665,5.1474,196.68,196.6,0.03]
[1738921663666,11.93329935,196.66,196.6,0.03]
[1738921663872,17.01839935,196.65,196.6,0.03]
[1738921664084,11.93329935,196.64,196.6,0.03]
[1738921665274,17.01889935,196.63,196.6,0.03]
[1738921666181,11.93329935,196.62,196.6,0.03]
[1738921666352,11.93329935,196.61,196.6,0.03]
[1738921666559,12.18427935,196.61,196.6,0.03]
[1738921667182,17.27047935,196.61,196.6,0.03]
[1738921667673,17.39596935,196.61,196.6,0.03]
[1738921673380,30.80781788,196.61,196.6,0.03]
[1738921675161,17.39596935,196.61,196.6,0.03]
[1738921675563,17.01949935,196.61,196.6,0.03]
[1738921676066,17.39596935,196.61,196.6,0.03]
[1738921676479,30.80781788,196.61,196.6,0.03]
[1738921677984,17.39596935,196.61,196.6,0.03]
[1738921678867,5.0859,196.63,196.6,0.03]
[1738921680386,5.0854,196.64,196.6,0.03]
[1738921680576,17.01869935,196.64,196.6,0.03]
[1738921681988,0.063,196.66,196.6,11.96329935]
[1738921682194,0.063,196.66,196.61,11.93329935]
[1738921682488,0.063,196.66,196.63,11.93329935]
[1738921682999,0.063,196.66,196.65,11.93329935]
[1738921684288,0.063,196.66,196.64,17.01869935]
[1738921684667,0.063,196.66,196.64,23.71154037]
[1738921684873,0.063,196.66,196.65,18.62614037]
[1738921685187,0.063,196.66,196.64,23.71154037]
[1738921685867,0.063,196.66,196.63,30.14114037]
[1738921687469,0.063,196.66,196.64,18.62614037]
[1738921688385,0.063,196.66,196.65,1.5267]
[1738921688692,0.063,196.66,196.65,25.23794037]
[1738921688893,0.063,196.66,196.65,39.41237487]
[1738921689274,0.063,196.66,196.65,40.67605266]
[1738921689670,0.063,196.66,196.65,25.23794037]
[1738921694492,0.063,196.66,196.63,6.4295]
[1738921694818,0.063,196.66,196.6,162.55804037]
[1738921694975,0.063,196.66,196.6,25.35804037]
[1738921697787,18.62614037,196.63,196.6,0.03]
[1738921699292,18.62614037,196.61,196.6,0.03]
[1738921701195,24.08881037,196.61,196.6,0.03]
[1738921703377,37.5006589,196.61,196.6,0.03]
[1738921704794,13.78831853,196.6,196.59,0.03]
[1738921704994,13.78831853,196.6,196.58,0.063]
[1738921704995,18.62614037,196.59,196.57,0.063]
[1738921705204,18.62614037,196.58,196.57,0.063]
[1738921706175,23.71304037,196.58,196.57,0.063]
[1738921706582,17.02438619,196.58,196.57,0.063]
[1738921707187,11.93748619,196.59,196.57,0.063]
[1738921707384,11.93748619,196.6,196.57,0.063]
[1738921707583,11.93748619,196.59,196.57,0.063]
[1738921707915,11.93748619,196.58,196.57,0.063]
[1738921708206,12.31395619,196.58,196.57,0.063]
[1738921709084,17.40085619,196.58,196.57,0.063]
[1738921709711,30.81270472,196.58,196.57,0.063]
[1738921710607,37.53207095,196.58,196.57,0.063]
[1738921720218,37.53207095,196.58,196.51,0.063]
[1738921720219,13.78831853,196.56,196.51,0.063]
[1738921720523,0.37647,196.53,196.51,0.063]
[1738921720711,18.65685242,196.52,196.51,0.063]
[1738921721217,32.44517095,196.52,196.51,0.063]
[1738921721905,37.53367095,196.52,196.51,0.063]
[1738921722912,23.74535242,196.52,196.51,0.063]
[1738921725528,37.53367095,196.52,196.51,0.063]
[1738921727107,0.37647,196.47,196.41,0.063]
[1738921727312,18.65685242,196.42,196.41,0.063]
[1738921729420,23.74785242,196.43,196.41,0.063]
[1738921729620,5.091,196.43,196.41,0.063]
[1738921730020,23.74785242,196.43,196.41,0.063]
[1738921731213,46.13624853,196.48,196.41,18.71985242]
[1738921731214,18.65685242,196.48,196.41,18.71985242]
[1738921732315,5.0898,196.47,196.41,18.71985242]
[1738921733113,18.65685242,196.46,196.41,0.063]
[1738921734437,18.65685242,196.5,196.43,18.65685242]
[1738921734612,18.65685242,196.51,196.45,18.65685242]
[1738921734933,5.0888,196.51,196.45,18.65685242]
[1738921735327,5.0885,196.52,196.46,18.65685242]
[1738921737732,23.74535242,196.52,196.45,23.74715242]
[1738921738941,23.74495242,196.54,196.47,26.33085242]
[1738921740137,0.063,196.52,196.47,26.33085242]
[1738921740837,0.063,196.52,196.48,18.65685242]
[1738921741033,0.063,196.52,196.47,149.9638]
[1738921741239,0.063,196.52,196.51,18.65685242]
[1738921741621,0.063,196.52,196.49,18.65685242]
[1738921741841,0.063,196.52,196.47,7.674]
[1738921742139,0.063,196.52,196.49,18.65685242]
[1738921742517,0.063,196.52,196.47,26.33085242]
[1738921742717,0.063,196.52,196.47,7.674]
[1738921743636,18.71985242,196.52,196.47,7.674]
[1738921743815,18.65685242,196.51,196.47,7.674]
[1738921744321,18.71985242,196.52,196.47,7.674]
[1738921744637,0.063,196.52,196.48,18.65685242]
[1738921744819,0.063,196.52,196.47,31.42065242]
[1738921746633,0.063,196.52,196.47,24.70529539]
[1738921748229,0.063,196.52,196.48,11.94149539]
[1738921748542,0.063,196.52,196.49,11.94149539]
[1738921749326,0.063,196.52,196.47,24.70529539]
[1738921749530,0.063,196.52,196.47,12.7638]
[1738921750547,0.063,196.52,196.47,7.674]
[1738921750842,11.94149539,196.51,196.46,5.12]
[1738921751028,12.00449539,196.52,196.46,5.12]
[1738921751230,0.063,196.52,196.47,11.94149539]
[1738921751924,0.063,196.52,196.5,11.94149539]
[1738921752125,0.063,196.52,196.47,0.79334775]
[1738921752126,0.063,196.52,196.49,31.94149539]
[1738921752728,0.063,196.52,196.49,18.65638955]
[1738921753349,0.063,196.52,196.47,0.03]
[1738921754552,0.063,196.52,196.49,20.0]
[1738921755660,0.063,196.52,196.49,38.65638955]
[1738921755836,0.063,196.52,196.49,20.0]
[1738921756254,0.063,196.52,196.47,18.68638955]
[1738921756428,0.063,196.52,196.47,0.03]
[1738921757751,0.063,196.52,196.47,18.68638955]
[1738921757934,0.063,196.52,196.48,38.65638955]
[1738921758665,0.063,196.52,196.49,18.65638955]
[1738921759847,0.063,196.52,196.49,23.74548955]
[1738921760151,0.063,196.52,196.49,5.0891]
[1738921760962,0.063,196.52,196.47,5.1195]
[1738921761262,0.063,196.52,196.47,0.03]
[1738921761656,18.71938955,196.52,196.47,0.03]
[1738921761862,18.65638955,196.5,196.47,0.03]
[1738921762438,18.65638955,196.49,196.47,0.03]
[1738921762635,18.65638955,196.48,196.47,0.03]
[1738921762859,23.74588955,196.48,196.47,0.03]
[1738921766600,5.0895,196.48,196.47,0.03]
[1738921767294,18.65638955,196.5,196.47,0.03]
[1738921767994,18.65638955,196.49,196.47,0.03]
[1738921768370,18.65638955,196.48,196.47,0.03]
[1738921768570,23.74588955,196.48,196.47,0.03]
[1738921770165,23.87137955,196.48,196.47,0.03]
[1738921771785,25.37307955,196.48,196.47,0.03]
[1738921771991,25.62405955,196.48,196.47,0.03]
[1738921772669,18.92153831,196.48,196.47,0.03]
[1738921772871,17.16885831,196.48,196.47,0.03]
[1738921775886,17.04336831,196.48,196.47,0.03]
[1738921776086,5.0895,196.48,196.47,0.03]
[1738921777994,17.04256831,196.51,196.47,0.03]
[1738921778289,12.07935831,196.5,196.47,0.03]
[1738921778494,11.95386831,196.5,196.47,0.03]
[1738921779282,17.04306831,196.5,196.47,0.03]
[1738921779488,11.95386831,196.49,196.47,0.03]
[1738921780100,5.0892,196.5,196.47,0.03]
[1738921780392,0.063,196.52,196.48,11.95386831]
[1738921781776,0.0001,196.52,196.51,33.83971684]
[1738921781984,0.063,196.58,196.54,20.0]
[1738921782210,0.063,196.58,196.57,11.95386831]
[1738921782614,0.063,196.58,196.57,13.48816831]
[1738921783378,0.063,196.58,196.57,18.57536831]
[1738921784012,0.063,196.58,196.57,25.69674476]
[1738921784610,0.063,196.66,196.6,20.0]
[1738921784805,0.063,196.66,196.65,18.62495414]
[1738921786690,0.063,196.66,196.63,18.62495414]
[1738921787007,0.063,196.66,196.62,23.71065414]
[1738921787204,0.063,196.66,196.63,18.62495414]
[1738921787788,0.063,196.66,196.61,155.82495414]
[1738921788089,18.62495414,196.64,196.57,113.80959323]
[1738921788296,18.68795414,196.66,196.59,18.62495414]
[1738921791000,23.77285414,196.66,196.59,18.62495414]
[1738921791705,18.62495414,196.65,196.58,18.62495414]
[1738921793110,23.71015414,196.65,196.58,155.82495414]
[1738921794515,18.62495414,196.61,196.54,160.91285414]
[1738921794811,18.62495414,196.59,196.53,143.4494]
[1738921794993,18.62495414,196.58,196.52,81.6]
[1738921795195,23.71195414,196.58,196.52,81.6]
[1738921796617,18.62495414,196.59,196.52,100.22495414]
[1738921797814,23.71175414,196.59,196.52,100.22495414]
[1738921798514,23.71175414,196.59,196.52,105.31345414]
[1738921798821,5.0868,196.59,196.53,18.62495414]
[1738921799601,23.71175414,196.59,196.52,100.22495414]
[1738921800304,5.0868,196.59,196.53,18.62495414]
[1738921801810,23.71175414,196.59,196.52,18.62495414]
[1738921802926,5.0868,196.59,196.53,18.62495414]
[1738921803421,23.71175414,196.59,196.52,18.62495414]
[1738921803636,18.62495414,196.58,196.51,18.62495414]
[1738921804020,5.0872,196.57,196.51,18.62495414]
[1738921804513,5.0872,196.57,196.52,18.62495414]
[1738921806227,18.62495414,196.58,196.51,18.62495414]
[1738921807322,5.0872,196.57,196.51,18.62495414]
[1738921807522,5.0872,196.57,196.52,18.62495414]
[1738921807828,5.0872,196.57,196.53,18.62495414]
[1738921808523,5.0872,196.57,196.52,18.62495414]
[1738921808832,5.0869,196.58,196.52,18.62495414]
[1738921810427,5.0869,196.58,196.52,18.65495414]
[1738921810612,11.93634626,196.58,196.52,11.96634626]
[1738921811718,17.02344626,196.58,196.52,11.96634626]
[1738921813526,0.063,196.59,196.57,11.93634626]
[1738921813830,0.063,196.59,196.58,11.93634626]
[1738921814624,0.063,196.59,196.58,19.3951192]
[1738921815107,0.063,196.59,196.58,238.1951192]
[1738921815314,0.063,196.59,196.58,237.43223603]
[1738921815526,0.063,196.59,196.58,242.51913603]
[1738921815726,1.2439,196.67,196.58,242.51913603]
[1738921816046,6.3285,196.67,196.62,18.63223603]
[1738921816407,6.3285,196.67,196.61,18.63223603]
[1738921816934,6.3285,196.67,196.58,223.8869]
[1738921816935,6.3285,196.67,196.62,18.63223603]
[1738921817526,0.063,196.68,196.62,18.63223603]
[1738921817715,0.063,196.68,196.64,18.63223603]
[1738921818357,0.063,196.68,196.66,18.63223603]
[1738921818515,0.063,196.68,196.67,18.63223603]
[1738921820916,0.063,196.68,196.65,155.83223603]
[1738921821650,18.69523603,196.68,196.65,137.2]
[1738921821856,18.63223603,196.66,196.61,137.2]
[1738921822037,0.063,196.68,196.63,18.63223603]
[1738921822340,0.063,196.68,196.64,18.63223603]
[1738921824657,0.063,196.68,196.62,18.63223603]
[1738921824823,18.69523603,196.68,196.61,23.71833603]
[1738921825424,0.063,196.68,196.62,18.63223603]
[1738921825921,0.063,196.68,196.62,237.43223603]
[1738921827254,0.063,196.68,196.62,242.51813603]
[1738921827551,0.063,196.68,196.65,18.63223603]
[1738921827751,0.063,196.68,196.67,18.63223603]
[1738921828050,0.063,196.68,196.65,237.43223603]
[1738921828355,0.063,196.68,196.65,218.8]
[1738921828757,0.063,196.68,196.65,237.43223603]
[1738921829758,0.063,196.68,196.65,218.8]
[1738921830258,0.063,196.68,196.67,38.63223603]
[1738921831535,0.063,196.68,196.67,262.51683603]
[1738921831755,0.063,196.68,196.67,278.59133688]
[1738921831957,0.063,196.72,196.71,38.63223603]
[1738921832234,0.063,196.72,196.71,257.43223603]
[1738921832435,0.03,196.77,196.74,13.41184853]
[1738921832637,0.03,196.77,196.76,38.63223603]
[1738921832840,0.03,196.77,196.76,257.43223603]
[1738921833146,0.03,196.77,196.76,271.84408456]
[1738921833648,0.063,196.78,196.77,1.37647]
[1738921833834,0.063,196.78,196.77,21.77061898]
[1738921834241,0.063,196.86,196.8,20.0]
[1738921834445,0.063,196.86,196.85,18.63223603]
[1738921834642,0.063,196.86,196.85,155.83223603]
[1738921835436,0.063,196.86,196.85,160.91223603]
[1738921836041,0.063,196.86,196.85,243.88870603]
[1738921836987,0.063,196.86,196.85,245.15922696]
[1738921838057,0.063,196.86,196.85,243.88870603]
[1738921839870,0.063,196.86,196.85,242.51223603]
[1738921840449,0.063,196.86,196.85,257.30055456]
[1738921840761,0.063,196.86,196.85,257.17506456]
[1738921842269,0.063,196.86,196.85,242.51223603]
[1738921844071,0.063,196.86,196.85,257.17506456]
[1738921844281,0.063,196.86,196.85,258.42604456]
[1738921846667,0.03,196.92,196.89,21.0]
[1738921846849,0.03,196.92,196.91,18.63223603]
[1738921848081,0.063,197.06,196.96,1.0]
[1738921848272,6.6408,197.17,197.06,1.0]
[1738921848569,18.63223603,197.2,197.14,18.63223603]
[1738921848791,18.63223603,197.18,197.1,18.63223603]
[1738921849085,18.63223603,197.15,197.09,137.2]
[1738921849794,18.63223603,197.15,197.07,20.0]
[1738921849987,18.63223603,197.15,197.08,18.63223603]
[1738921850959,18.63223603,197.13,197.07,157.2]
[1738921851692,18.63223603,197.1,197.04,137.2]
[1738921851991,23.70573603,197.1,197.04,137.2]
[1738921852292,18.63223603,197.08,197.04,137.2]
[1738921852502,18.63223603,197.08,197.01,155.83223603]
[1738921852663,18.63223603,197.09,197.02,18.63223603]
[1738921853004,18.63223603,197.09,197.02,19.39338829]
[1738921853166,18.63223603,197.09,197.02,155.83223603]
[1738921854102,18.63223603,197.08,197.02,137.2]
[1738921854392,18.63223603,197.05,196.99,137.2]
[1738921854597,18.63223603,197.05,196.98,155.83223603]
[1738921855894,23.70703603,197.06,196.98,155.83223603]
[1738921856196,23.70703603,197.06,196.99,18.63223603]
[1738921857112,18.63223603,197.07,196.99,18.63223603]
[1738921857290,23.70653603,197.07,196.99,18.63223603]
[1738921857812,5.0743,197.07,196.99,0.76131045]
[1738921858013,5.0743,197.07,197.02,18.63223603]
[1738921858221,0.063,197.08,197.03,18.63223603]
[1738921858714,5.1371,197.08,197.02,18.63223603]
[1738921858916,18.63223603,197.07,197.0,18.63223603]
[1738921859086,5.0745,197.06,197.0,18.63223603]
[1738921859502,5.0745,197.06,197.01,18.63223603]
[1738921859898,5.0745,197.06,196.99,137.2]
[1738921859899,5.0745,197.06,197.0,18.63223603]
[1738921860205,18.69523603,197.08,197.01,18.63223603]
[1738921860602,0.31398,197.08,197.02,18.63223603]
[1738921860932,0.063,197.08,197.02,18.63223603]
[1738921861206,0.063,197.08,197.05,18.63223603]
[1738921861789,0.063,197.08,197.04,18.63223603]
[1738921862003,0.063,197.08,197.05,18.63223603]
[1738921862211,0.063,197.08,197.06,18.63223603]
[1738921863200,0.063,197.08,197.07,18.63223603]
[1738921864511,0.063,197.08,197.07,23.70653603]
[1738921865514,0.063,197.08,197.07,18.63223603]
[1738921865812,0.063,197.08,197.02,18.63223603]
[1738921866717,5.137,197.08,197.02,18.63223603]
[1738921866911,23.76923603,197.08,197.01,18.63223603]
[1738921867101,18.63223603,197.06,196.99,18.63223603]
[1738921867298,18.63223603,197.04,196.97,160.90883603]
[1738921867500,18.63223603,197.04,196.97,155.83223603]